[Event "Early-Titled-Tuesday-Blitz-March-26-2024"]
[Site "Chess.com"]
[Date "2024.03.26"]
[Round "5"]
[White "amylazy"]
[Black "gorgeous1083"]
[Result "1-0"]
[WhiteElo "2413"]
[BlackElo "2042"]
[TimeControl "180+1"]
[EndTime "8:53:14 PDT"]
[Termination "amylazy won on time"]

1. d4 {[%clk 0:02:54.7]} 1... Nf6 {[%clk 0:02:59.4]} 2. Nf3 {[%clk 0:02:54.7]}
2... e6 {[%clk 0:02:59.5]} 3. e3 {[%clk 0:02:54.9]} 3... d5 {[%clk 0:03:00.1]}
4. Bd3 {[%clk 0:02:55.4]} 4... c5 {[%clk 0:02:59.9]} 5. O-O {[%clk 0:02:56]}
5... c4 {[%clk 0:02:57.3]} 6. Be2 {[%clk 0:02:55.2]} 6... b5 {[%clk 0:02:56.5]}
7. b3 {[%clk 0:02:55.7]} 7... Bb7 {[%clk 0:02:54.7]} 8. a4 {[%clk 0:02:55.4]}
8... a6 {[%clk 0:02:53.8]} 9. Ne5 {[%clk 0:02:52.9]} 9... Nbd7 {[%clk
0:02:48.5]} 10. Nxd7 {[%clk 0:02:47.2]} 10... Qxd7 {[%clk 0:02:44.1]} 11. axb5
{[%clk 0:02:44.3]} 11... axb5 {[%clk 0:02:43.9]} 12. Rxa8+ {[%clk 0:02:45.2]}
12... Bxa8 {[%clk 0:02:44.5]} 13. bxc4 {[%clk 0:02:44.6]} 13... dxc4 {[%clk
0:02:40.7]} 14. Nd2 {[%clk 0:02:38.8]} 14... Bb4 {[%clk 0:02:32.7]} 15. Nf3
{[%clk 0:02:37]} 15... O-O {[%clk 0:02:31.3]} 16. Bd2 {[%clk 0:02:34.9]} 16...
Bd6 {[%clk 0:02:15.4]} 17. c3 {[%clk 0:02:31.3]} 17... Ne4 {[%clk 0:02:10.3]}
18. Be1 {[%clk 0:02:29.9]} 18... Bd5 {[%clk 0:02:06.3]} 19. Qc2 {[%clk
0:02:29.9]} 19... Rb8 {[%clk 0:02:00]} 20. Nd2 {[%clk 0:02:29.9]} 20... Qc6
{[%clk 0:01:53.9]} 21. f3 {[%clk 0:02:27.1]} 21... Nf6 {[%clk 0:01:45]} 22. e4
{[%clk 0:02:27.1]} 22... Bf4 {[%clk 0:01:33.6]} 23. exd5 {[%clk 0:02:26.7]}
23... Nxd5 {[%clk 0:01:31.3]} 24. Ne4 {[%clk 0:02:26.2]} 24... Ne3 {[%clk
0:01:28.6]} 25. Qb1 {[%clk 0:02:18.8]} 25... Nxf1 {[%clk 0:01:24]} 26. Bxf1
{[%clk 0:02:19.7]} 26... Qd5 {[%clk 0:01:07.5]} 27. Qb4 {[%clk 0:02:15.8]} 27...
e5 {[%clk 0:00:57.7]} 28. dxe5 {[%clk 0:02:08.3]} 28... Bxe5 {[%clk 0:00:42.6]}
29. Bg3 {[%clk 0:02:07.9]} 29... f5 {[%clk 0:00:27.6]} 30. Bxe5 {[%clk
0:02:05.6]} 30... Qxe5 {[%clk 0:00:27.8]} 31. Nd6 {[%clk 0:02:01.7]} 31... Rd8
{[%clk 0:00:19.4]} 32. Nxb5 {[%clk 0:01:51.7]} 32... Qe3+ {[%clk 0:00:14.3]} 33.
Kh1 {[%clk 0:01:51.6]} 33... Rd1 {[%clk 0:00:04.5]} 34. Qxc4+ {[%clk 0:01:51.5]}
34... Kf8 {[%clk 0:00:02.3]} 35. Qc8+ {[%clk 0:01:48.8]} 35... Kf7 {[%clk
0:00:02.1]} 36. Qxf5+ {[%clk 0:01:47.9]} 36... Ke8 {[%clk 0:00:01.8]} 37. Qc8+
{[%clk 0:01:43]} 37... Kf7 {[%clk 0:00:01.7]} 38. Qc4+ {[%clk 0:01:42.1]} 38...
Ke8 {[%clk 0:00:01.8]} 39. h3 {[%clk 0:01:40.1]} 39... Qe1 {[%clk 0:00:01.5]}
40. Qg8+ {[%clk 0:01:32.7]} 40... Kd7 {[%clk 0:00:01.1]} 41. Qxg7+ {[%clk
0:01:32.9]} 41... Kc6 {[%clk 0:00:01.7]} 42. Qc7+ {[%clk 0:01:32.5]} 1-0

[Event "Early-Titled-Tuesday-Blitz-March-26-2024"]
[Site "Chess.com"]
[Date "2024.03.26"]
[Round "5"]
[White "mertfelin"]
[Black "teresin05"]
[Result "0-1"]
[WhiteElo "2408"]
[BlackElo "2288"]
[TimeControl "180+1"]
[EndTime "8:53:14 PDT"]
[Termination "teresin05 won by resignation"]

1. e4 {[%clk 0:03:00.2]} 1... c5 {[%clk 0:02:49.8]} 2. Nf3 {[%clk 0:03:00.5]}
2... Nc6 {[%clk 0:02:49.5]} 3. d4 {[%clk 0:03:00.5]} 3... cxd4 {[%clk
0:02:50.4]} 4. Nxd4 {[%clk 0:03:01.4]} 4... Nf6 {[%clk 0:02:50.4]} 5. Nc3 {[%clk
0:02:58.1]} 5... d6 {[%clk 0:02:50.6]} 6. Bg5 {[%clk 0:02:57.1]} 6... e6 {[%clk
0:02:50.6]} 7. Qd2 {[%clk 0:02:56.8]} 7... a6 {[%clk 0:02:49.8]} 8. O-O-O {[%clk
0:02:56.8]} 8... Be7 {[%clk 0:02:50.4]} 9. Kb1 {[%clk 0:02:57.3]} 9... O-O
{[%clk 0:02:47]} 10. h4 {[%clk 0:02:54.4]} 10... Bd7 {[%clk 0:02:45.3]} 11. Nxc6
{[%clk 0:02:49.9]} 11... Bxc6 {[%clk 0:02:35.8]} 12. Bd3 {[%clk 0:02:34.8]}
12... b5 {[%clk 0:02:33.1]} 13. f3 {[%clk 0:02:31.4]} 13... b4 {[%clk
0:02:25.7]} 14. Ne2 {[%clk 0:02:31.5]} 14... a5 {[%clk 0:02:24.1]} 15. Nd4
{[%clk 0:02:31.3]} 15... Bb7 {[%clk 0:02:16.1]} 16. g4 {[%clk 0:02:31.6]} 16...
Rc8 {[%clk 0:01:45.7]} 17. Be3 {[%clk 0:02:28.3]} 17... Nd7 {[%clk 0:01:44.5]}
18. Bb5 {[%clk 0:02:21.1]} 18... Ne5 {[%clk 0:01:42.2]} 19. Qe2 {[%clk
0:02:16.5]} 19... Qc7 {[%clk 0:01:35.6]} 20. Rc1 {[%clk 0:02:09]} 20... Nc4
{[%clk 0:01:30.9]} 21. Bf2 {[%clk 0:02:01.8]} 21... d5 {[%clk 0:01:26.8]} 22. e5
{[%clk 0:01:53.8]} 22... Bc5 {[%clk 0:00:56.3]} 23. f4 {[%clk 0:01:54]} 23...
Qb6 {[%clk 0:00:52.4]} 24. Bxc4 {[%clk 0:01:47.3]} 24... Bxd4 {[%clk 0:00:50.8]}
25. Bxd4 {[%clk 0:01:45.5]} 25... Qxd4 {[%clk 0:00:51.7]} 26. Bd3 {[%clk
0:01:46.1]} 26... Qxf4 {[%clk 0:00:49.1]} 27. Rcf1 {[%clk 0:01:43.9]} 27... Qd4
{[%clk 0:00:48.4]} 28. h5 {[%clk 0:01:41.6]} 28... a4 {[%clk 0:00:48.3]} 29. g5
{[%clk 0:01:37.6]} 29... a3 {[%clk 0:00:48.6]} 30. c3 {[%clk 0:01:30.7]} 30...
bxc3 {[%clk 0:00:22.3]} 31. g6 {[%clk 0:00:43.3]} 31... c2+ {[%clk 0:00:18.8]}
0-1

[Event "Early-Titled-Tuesday-Blitz-March-26-2024"]
[Site "Chess.com"]
[Date "2024.03.26"]
[Round "5"]
[White "esteban062000"]
[Black "Xavier_mompel"]
[Result "0-1"]
[WhiteElo "2150"]
[BlackElo "2347"]
[TimeControl "180+1"]
[EndTime "8:53:18 PDT"]
[Termination "Xavier_mompel won by resignation"]

1. e4 {[%clk 0:03:00.9]} 1... c5 {[%clk 0:02:59.7]} 2. Nf3 {[%clk 0:03:00.7]}
2... d6 {[%clk 0:02:59.8]} 3. d4 {[%clk 0:03:01.3]} 3... cxd4 {[%clk 0:03:00.5]}
4. Nxd4 {[%clk 0:03:02.2]} 4... Nf6 {[%clk 0:03:00.8]} 5. Nc3 {[%clk 0:03:02.4]}
5... a6 {[%clk 0:03:01.3]} 6. a4 {[%clk 0:03:01.5]} 6... e5 {[%clk 0:02:59.5]}
7. Nf3 {[%clk 0:03:01]} 7... Be7 {[%clk 0:02:59.7]} 8. Bc4 {[%clk 0:03:00.7]}
8... O-O {[%clk 0:02:59.2]} 9. O-O {[%clk 0:02:58.9]} 9... Nc6 {[%clk
0:02:59.6]} 10. Re1 {[%clk 0:02:58.1]} 10... Be6 {[%clk 0:02:59.1]} 11. Nd5
{[%clk 0:02:52.5]} 11... Bxd5 {[%clk 0:02:48.3]} 12. exd5 {[%clk 0:02:48.8]}
12... Nb8 {[%clk 0:02:48.2]} 13. h3 {[%clk 0:02:31.6]} 13... Nbd7 {[%clk
0:02:46.9]} 14. b4 {[%clk 0:02:30.5]} 14... Rc8 {[%clk 0:02:35.3]} 15. Bb3
{[%clk 0:02:29.5]} 15... Nb6 {[%clk 0:02:19.4]} 16. a5 {[%clk 0:02:12]} 16...
Nc4 {[%clk 0:02:19]} 17. Qe2 {[%clk 0:02:06.6]} 17... Qc7 {[%clk 0:02:11.7]} 18.
Nd2 {[%clk 0:02:05.4]} 18... Nxd2 {[%clk 0:01:59.5]} 19. Bxd2 {[%clk 0:02:06.3]}
19... Ne8 {[%clk 0:01:52.7]} 20. f4 {[%clk 0:01:42.5]} 20... Bf6 {[%clk
0:01:44.1]} 21. f5 {[%clk 0:01:35.7]} 21... g6 {[%clk 0:01:29.3]} 22. Qg4 {[%clk
0:01:24.6]} 22... Ng7 {[%clk 0:01:23.8]} 23. fxg6 {[%clk 0:01:05.7]} 23... fxg6
{[%clk 0:01:17.3]} 24. Bh6 {[%clk 0:00:35.3]} 24... Rf7 {[%clk 0:01:11.2]} 25.
Rf1 {[%clk 0:00:32.9]} 25... Rcf8 {[%clk 0:01:00.2]} 26. c4 {[%clk 0:00:25.9]}
26... e4 {[%clk 0:00:51]} 27. Rae1 {[%clk 0:00:23.2]} 27... Bd4+ {[%clk
0:00:50.1]} 28. Kh2 {[%clk 0:00:12.9]} 28... Rxf1 {[%clk 0:00:48.4]} 29. Rxf1
{[%clk 0:00:11.7]} 29... Rxf1 {[%clk 0:00:48.9]} 30. Bxg7 {[%clk 0:00:11.9]}
30... Kxg7 {[%clk 0:00:45.8]} 31. Qxe4 {[%clk 0:00:12]} 31... Be5+ {[%clk
0:00:45.4]} 32. g3 {[%clk 0:00:11.7]} 32... Qf7 {[%clk 0:00:45.1]} 0-1

[Event "Early-Titled-Tuesday-Blitz-March-26-2024"]
[Site "Chess.com"]
[Date "2024.03.26"]
[Round "5"]
[White "karinachess1"]
[Black "CADMartin"]
[Result "0-1"]
[WhiteElo "2609"]
[BlackElo "2490"]
[TimeControl "180+1"]
[EndTime "8:53:20 PDT"]
[Termination "CADMartin won by checkmate"]

1. d4 {[%clk 0:03:00.9]} 1... Nf6 {[%clk 0:02:57.4]} 2. c4 {[%clk 0:03:01.1]}
2... c5 {[%clk 0:02:56.2]} 3. d5 {[%clk 0:02:57.8]} 3... b5 {[%clk 0:02:54.5]}
4. cxb5 {[%clk 0:02:57.6]} 4... a6 {[%clk 0:02:55]} 5. b6 {[%clk 0:02:54.4]}
5... e6 {[%clk 0:02:54.5]} 6. Nc3 {[%clk 0:02:54.6]} 6... exd5 {[%clk 0:02:54]}
7. Nxd5 {[%clk 0:02:55]} 7... Nxd5 {[%clk 0:02:54.9]} 8. Qxd5 {[%clk 0:02:54.8]}
8... Nc6 {[%clk 0:02:55.7]} 9. Nf3 {[%clk 0:02:49.9]} 9... Be7 {[%clk
0:02:48.3]} 10. Bf4 {[%clk 0:02:48.8]} 10... Qxb6 {[%clk 0:02:45.6]} 11. Qd2
{[%clk 0:02:12]} 11... O-O {[%clk 0:02:38]} 12. e3 {[%clk 0:02:12.2]} 12... c4
{[%clk 0:02:36.4]} 13. a3 {[%clk 0:02:08.8]} 13... c3 {[%clk 0:02:31.1]} 14.
bxc3 {[%clk 0:02:02.5]} 14... d5 {[%clk 0:02:29.3]} 15. Bd3 {[%clk 0:01:56.6]}
15... Na5 {[%clk 0:02:28.4]} 16. Rb1 {[%clk 0:01:53.5]} 16... Qc6 {[%clk
0:02:17.6]} 17. Nd4 {[%clk 0:01:40.3]} 17... Qf6 {[%clk 0:02:06.4]} 18. a4
{[%clk 0:01:29.5]} 18... Bd7 {[%clk 0:02:04.9]} 19. Qc2 {[%clk 0:01:29.4]} 19...
h6 {[%clk 0:02:03.6]} 20. O-O {[%clk 0:01:28.4]} 20... Bd6 {[%clk 0:02:01.2]}
21. Bxd6 {[%clk 0:01:14.6]} 21... Qxd6 {[%clk 0:02:02.1]} 22. Bh7+ {[%clk
0:01:12]} 22... Kh8 {[%clk 0:02:01]} 23. Bf5 {[%clk 0:01:12.9]} 23... Rfc8
{[%clk 0:01:57.3]} 24. Rfc1 {[%clk 0:00:59.4]} 24... Rc4 {[%clk 0:01:54.4]} 25.
Bxd7 {[%clk 0:00:56]} 25... Qxd7 {[%clk 0:01:55.3]} 26. Rb4 {[%clk 0:00:53.4]}
26... Rac8 {[%clk 0:01:53.6]} 27. Qb2 {[%clk 0:00:53.3]} 27... Qd6 {[%clk
0:01:42.6]} 28. Rb6 {[%clk 0:00:47.5]} 28... Qc5 {[%clk 0:01:38.9]} 29. Rxa6
{[%clk 0:00:42.1]} 29... Rxa4 {[%clk 0:01:38.7]} 30. Qb1 {[%clk 0:00:16.5]}
30... Ra3 {[%clk 0:01:31.4]} 31. h4 {[%clk 0:00:09.4]} 31... Rxc3 {[%clk
0:01:27.3]} 32. Rxc3 {[%clk 0:00:09.8]} 32... Qxc3 {[%clk 0:01:28.2]} 33. Qf5
{[%clk 0:00:10.4]} 33... Qc7 {[%clk 0:01:22]} 34. h5 {[%clk 0:00:09.4]} 34...
Nc4 {[%clk 0:01:20.1]} 35. g3 {[%clk 0:00:08.2]} 35... Nxe3 {[%clk 0:01:17.9]}
36. fxe3 {[%clk 0:00:07.4]} 36... Qxg3+ {[%clk 0:01:18.4]} 37. Kf1 {[%clk
0:00:05.6]} 37... Rc1+ {[%clk 0:01:17.7]} 38. Ke2 {[%clk 0:00:05.7]} 38... Qe1+
{[%clk 0:01:17.1]} 39. Kf3 {[%clk 0:00:05.5]} 39... Qf1+ {[%clk 0:01:13.2]} 40.
Kg4 {[%clk 0:00:05.9]} 40... Qg2+ {[%clk 0:01:12.4]} 41. Kf4 {[%clk 0:00:05.9]}
41... Rf1+ {[%clk 0:01:11.3]} 42. Ke5 {[%clk 0:00:05.5]} 42... Rxf5+ {[%clk
0:01:10.9]} 43. Kxf5 {[%clk 0:00:04]} 43... Qe4# {[%clk 0:01:11.3]} 0-1

[Event "Early-Titled-Tuesday-Blitz-March-26-2024"]
[Site "Chess.com"]
[Date "2024.03.26"]
[Round "5"]
[White "SlavenPastar"]
[Black "Brahianzevich"]
[Result "0-1"]
[WhiteElo "2596"]
[BlackElo "2462"]
[TimeControl "180+1"]
[EndTime "8:53:21 PDT"]
[Termination "Brahianzevich won by checkmate"]

1. Nf3 {[%clk 0:03:00.9]} 1... d5 {[%clk 0:02:59.5]} 2. g3 {[%clk 0:03:01.5]}
2... e6 {[%clk 0:03:00.4]} 3. Bg2 {[%clk 0:03:02]} 3... Nf6 {[%clk 0:03:01.3]}
4. c4 {[%clk 0:03:02.5]} 4... Be7 {[%clk 0:03:02.2]} 5. b3 {[%clk 0:03:03.1]}
5... O-O {[%clk 0:03:02.3]} 6. Bb2 {[%clk 0:03:03.8]} 6... c5 {[%clk 0:02:58.4]}
7. cxd5 {[%clk 0:03:03.6]} 7... Nxd5 {[%clk 0:02:55.4]} 8. d4 {[%clk 0:03:04.1]}
8... cxd4 {[%clk 0:02:52.8]} 9. Nxd4 {[%clk 0:03:01.8]} 9... Bb4+ {[%clk
0:02:52.4]} 10. Kf1 {[%clk 0:02:30.4]} 10... Nc6 {[%clk 0:02:46.3]} 11. Nxc6
{[%clk 0:02:30]} 11... Ne3+ {[%clk 0:02:44.9]} 12. fxe3 {[%clk 0:02:23]} 12...
Qxd1+ {[%clk 0:02:44.8]} 13. Kf2 {[%clk 0:02:23.7]} 13... Qc2 {[%clk 0:02:29.7]}
14. Na3 {[%clk 0:02:02.3]} 14... Qf5+ {[%clk 0:02:02.6]} 15. Bf3 {[%clk
0:01:58.4]} 15... bxc6 {[%clk 0:01:49.8]} 16. Nc4 {[%clk 0:01:56.3]} 16... Ba6
{[%clk 0:01:45.3]} 17. Ne5 {[%clk 0:01:52.6]} 17... f6 {[%clk 0:01:18.8]} 18.
Nxc6 {[%clk 0:01:48.1]} 18... Bxe2 {[%clk 0:01:12.5]} 19. Kxe2 {[%clk
0:01:27.3]} 19... Qc2+ {[%clk 0:01:12.1]} 20. Kf1 {[%clk 0:01:25]} 20... Qxb2
{[%clk 0:01:12.2]} 21. Rd1 {[%clk 0:01:23.8]} 21... Ba3 {[%clk 0:00:57.2]} 22.
Na5 {[%clk 0:01:15.8]} 22... Rad8 {[%clk 0:00:52.5]} 23. Nc4 {[%clk 0:01:13.8]}
23... Rxd1+ {[%clk 0:00:47.2]} 24. Bxd1 {[%clk 0:01:14.7]} 24... Qc1 {[%clk
0:00:45.5]} 25. Kf2 {[%clk 0:01:12.4]} 25... Rd8 {[%clk 0:00:39.6]} 26. Bf3
{[%clk 0:01:08]} 26... Qc2+ {[%clk 0:00:39.7]} 27. Be2 {[%clk 0:01:07.7]} 27...
Bc5 {[%clk 0:00:37.9]} 28. h4 {[%clk 0:01:03]} 28... Rd2 {[%clk 0:00:27]} 29.
Nxd2 {[%clk 0:01:01.8]} 29... Qxd2 {[%clk 0:00:27.9]} 30. Rd1 {[%clk 0:01:01.5]}
30... Qxe3+ {[%clk 0:00:28]} 31. Ke1 {[%clk 0:01:01.4]} 31... Qxg3+ {[%clk
0:00:20.3]} 32. Kd2 {[%clk 0:01:00.8]} 32... Bb4+ {[%clk 0:00:20.1]} 33. Kc2
{[%clk 0:01:00.2]} 33... Qc3+ {[%clk 0:00:19.4]} 34. Kb1 {[%clk 0:00:58.7]}
34... Ba3 {[%clk 0:00:14.6]} 35. Rd8+ {[%clk 0:00:54.7]} 35... Kf7 {[%clk
0:00:14.6]} 36. Bh5+ {[%clk 0:00:55.3]} 36... g6 {[%clk 0:00:13.8]} 37. Bxg6+
{[%clk 0:00:55]} 37... Kxg6 {[%clk 0:00:13.5]} 38. Rd7 {[%clk 0:00:55.9]} 38...
Qb2# {[%clk 0:00:12.7]} 0-1

[Event "Early-Titled-Tuesday-Blitz-March-26-2024"]
[Site "Chess.com"]
[Date "2024.03.26"]
[Round "5"]
[White "Incognizance"]
[Black "CFalcons8"]
[Result "0-1"]
[WhiteElo "1909"]
[BlackElo "2401"]
[TimeControl "180+1"]
[EndTime "8:53:22 PDT"]
[Termination "CFalcons8 won by resignation"]

1. d4 {[%clk 0:03:00.9]} 1... e6 {[%clk 0:03:00]} 2. c4 {[%clk 0:03:01.2]} 2...
Nf6 {[%clk 0:03:00]} 3. Nf3 {[%clk 0:03:00.7]} 3... b6 {[%clk 0:02:59.9]} 4. Nc3
{[%clk 0:03:00.7]} 4... Bb7 {[%clk 0:03:00.3]} 5. g3 {[%clk 0:03:01.3]} 5... Be7
{[%clk 0:02:56.8]} 6. Bg2 {[%clk 0:03:01.9]} 6... Ne4 {[%clk 0:02:55.9]} 7. O-O
{[%clk 0:03:00.6]} 7... O-O {[%clk 0:02:55]} 8. Nxe4 {[%clk 0:02:58.7]} 8...
Bxe4 {[%clk 0:02:55.9]} 9. b3 {[%clk 0:02:58.9]} 9... f5 {[%clk 0:02:55.1]} 10.
Bb2 {[%clk 0:02:58.5]} 10... d6 {[%clk 0:02:51.8]} 11. Rc1 {[%clk 0:02:58.1]}
11... Bf6 {[%clk 0:02:50.6]} 12. Qd2 {[%clk 0:02:51.4]} 12... Nd7 {[%clk
0:02:41.2]} 13. Ne1 {[%clk 0:02:51.1]} 13... Bxg2 {[%clk 0:02:42.1]} 14. Nxg2
{[%clk 0:02:51.2]} 14... g5 {[%clk 0:02:40.7]} 15. e3 {[%clk 0:02:47.9]} 15...
e5 {[%clk 0:02:36.5]} 16. dxe5 {[%clk 0:02:47.6]} 16... dxe5 {[%clk 0:02:36.5]}
17. Ba3 {[%clk 0:02:44.2]} 17... Rf7 {[%clk 0:02:33.9]} 18. Rfd1 {[%clk
0:02:40.5]} 18... Qe8 {[%clk 0:02:33.7]} 19. Qd5 {[%clk 0:02:28.9]} 19... Rd8
{[%clk 0:02:33.9]} 20. Qf3 {[%clk 0:02:08.8]} 20... e4 {[%clk 0:02:33.1]} 21.
Qe2 {[%clk 0:01:50.9]} 21... Ne5 {[%clk 0:02:32.7]} 22. Ne1 {[%clk 0:01:42.4]}
22... Rfd7 {[%clk 0:02:32.2]} 23. Kg2 {[%clk 0:01:31.7]} 23... g4 {[%clk
0:02:28.4]} 24. Kf1 {[%clk 0:01:28.5]} 24... Qh5 {[%clk 0:02:26.8]} 25. Kg1
{[%clk 0:01:27.6]} 25... Nf3+ {[%clk 0:02:25.8]} 26. Nxf3 {[%clk 0:01:26.9]}
26... exf3 {[%clk 0:02:26.7]} 27. Qf1 {[%clk 0:01:22.2]} 27... Qh3 {[%clk
0:01:25.5]} 28. Rxd7 {[%clk 0:00:30]} 28... Rxd7 {[%clk 0:01:23.5]} 29. Qxh3
{[%clk 0:00:28.4]} 29... gxh3 {[%clk 0:01:24.4]} 30. Kf1 {[%clk 0:00:28.9]}
30... Rd2 {[%clk 0:01:22.6]} 31. Ke1 {[%clk 0:00:12.4]} 31... Rxa2 {[%clk
0:01:21.3]} 32. Bb4 {[%clk 0:00:13.3]} 32... Re2+ {[%clk 0:01:19.8]} 33. Kf1
{[%clk 0:00:12.5]} 33... Rb2 {[%clk 0:01:18.6]} 34. Ke1 {[%clk 0:00:03]} 34...
Rxb3 {[%clk 0:01:18.5]} 35. Bd2 {[%clk 0:00:02]} 35... a5 {[%clk 0:01:15.9]} 36.
c5 {[%clk 0:00:02.4]} 36... a4 {[%clk 0:01:11.5]} 37. cxb6 {[%clk 0:00:02.2]}
37... cxb6 {[%clk 0:01:12.4]} 38. Bc3 {[%clk 0:00:01.6]} 38... Bxc3+ {[%clk
0:01:11.3]} 0-1

[Event "Early-Titled-Tuesday-Blitz-March-26-2024"]
[Site "Chess.com"]
[Date "2024.03.26"]
[Round "5"]
[White "Lucky_Puncher"]
[Black "jinbojinbo"]
[Result "0-1"]
[WhiteElo "2474"]
[BlackElo "2649"]
[TimeControl "180+1"]
[EndTime "8:53:25 PDT"]
[Termination "jinbojinbo won on time"]

1. d4 {[%clk 0:01:04.5]} 1... Nf6 {[%clk 0:02:59.4]} 2. c4 {[%clk 0:01:02.9]}
2... c5 {[%clk 0:02:59]} 3. d5 {[%clk 0:01:03.2]} 3... e6 {[%clk 0:02:59.2]} 4.
Nc3 {[%clk 0:01:03.7]} 4... exd5 {[%clk 0:02:59.7]} 5. cxd5 {[%clk 0:01:04.6]}
5... g6 {[%clk 0:03:00.2]} 6. e4 {[%clk 0:01:05.2]} 6... d6 {[%clk 0:03:00]} 7.
h3 {[%clk 0:01:05.7]} 7... Bg7 {[%clk 0:03:00.3]} 8. Nf3 {[%clk 0:01:06.4]} 8...
O-O {[%clk 0:03:00.8]} 9. Be3 {[%clk 0:01:07.1]} 9... Re8 {[%clk 0:03:00.9]} 10.
Nd2 {[%clk 0:01:07.5]} 10... Na6 {[%clk 0:02:58.6]} 11. Bd3 {[%clk 0:01:03.7]}
11... Nc7 {[%clk 0:02:57.4]} 12. O-O {[%clk 0:01:02.8]} 12... a6 {[%clk
0:02:51.6]} 13. a4 {[%clk 0:01:02.7]} 13... Rb8 {[%clk 0:02:51.5]} 14. a5 {[%clk
0:00:57.5]} 14... Bd7 {[%clk 0:02:47.7]} 15. Qc2 {[%clk 0:00:55.8]} 15... Nb5
{[%clk 0:02:46.1]} 16. Bxb5 {[%clk 0:00:51.4]} 16... axb5 {[%clk 0:02:47]} 17.
Bf4 {[%clk 0:00:48.7]} 17... Qe7 {[%clk 0:02:36.3]} 18. Rfe1 {[%clk 0:00:46.6]}
18... Nh5 {[%clk 0:02:36.4]} 19. Bh2 {[%clk 0:00:46.2]} 19... f5 {[%clk
0:02:19.5]} 20. a6 {[%clk 0:00:41.9]} 20... bxa6 {[%clk 0:02:10]} 21. Rxa6
{[%clk 0:00:42.8]} 21... f4 {[%clk 0:02:10.1]} 22. Nf3 {[%clk 0:00:42.9]} 22...
b4 {[%clk 0:02:06.2]} 23. Nb1 {[%clk 0:00:36.6]} 23... Bb5 {[%clk 0:02:05.5]}
24. Ra5 {[%clk 0:00:36.5]} 24... Qc7 {[%clk 0:01:45.9]} 25. Ra1 {[%clk
0:00:35.9]} 25... c4 {[%clk 0:01:45.8]} 26. Nbd2 {[%clk 0:00:31]} 26... Qc5
{[%clk 0:01:36.3]} 27. Ng5 {[%clk 0:00:22.1]} 27... Qd4 {[%clk 0:01:27.1]} 28.
Rab1 {[%clk 0:00:17.3]} 28... c3 {[%clk 0:01:25.4]} 29. bxc3 {[%clk 0:00:17.7]}
29... bxc3 {[%clk 0:01:25.3]} 30. Ndf3 {[%clk 0:00:17.7]} 30... Qd3 {[%clk
0:01:25.3]} 31. Rbc1 {[%clk 0:00:10.4]} 31... Qxc2 {[%clk 0:01:24.5]} 32. Rxc2
{[%clk 0:00:11.3]} 32... Bd3 {[%clk 0:01:23.2]} 33. Rcc1 {[%clk 0:00:11.9]}
33... c2 {[%clk 0:01:23.4]} 34. Ne6 {[%clk 0:00:10.8]} 34... Bb2 {[%clk
0:01:23.5]} 35. Nxf4 {[%clk 0:00:11.2]} 35... Nxf4 {[%clk 0:01:20.7]} 36. Bxf4
{[%clk 0:00:12.1]} 36... Bxc1 {[%clk 0:01:21.1]} 37. Rxc1 {[%clk 0:00:11.7]}
37... Rb1 {[%clk 0:01:19.7]} 38. e5 {[%clk 0:00:08.1]} 38... dxe5 {[%clk
0:01:18.6]} 39. Be3 {[%clk 0:00:08.4]} 39... e4 {[%clk 0:01:15.9]} 40. Nd4
{[%clk 0:00:06.1]} 40... Reb8 {[%clk 0:01:15.9]} 41. d6 {[%clk 0:00:02.8]} 41...
Rd8 {[%clk 0:01:13.6]} 0-1

[Event "Early-Titled-Tuesday-Blitz-March-26-2024"]
[Site "Chess.com"]
[Date "2024.03.26"]
[Round "5"]
[White "Shodikulov_Jamshid1990"]
[Black "Irina_Baraeva"]
[Result "1-0"]
[WhiteElo "2258"]
[BlackElo "2379"]
[TimeControl "180+1"]
[EndTime "8:53:25 PDT"]
[Termination "Shodikulov_Jamshid1990 won by resignation"]

1. e4 {[%clk 0:02:58]} 1... e6 {[%clk 0:02:54.3]} 2. d4 {[%clk 0:02:57.5]} 2...
d5 {[%clk 0:02:54.2]} 3. Nd2 {[%clk 0:02:56.9]} 3... c5 {[%clk 0:02:53.9]} 4.
Ngf3 {[%clk 0:02:56.1]} 4... cxd4 {[%clk 0:02:49.5]} 5. exd5 {[%clk 0:02:56.5]}
5... Qxd5 {[%clk 0:02:42.1]} 6. Bc4 {[%clk 0:02:56.3]} 6... Qd6 {[%clk
0:02:42.2]} 7. O-O {[%clk 0:02:56.2]} 7... Nf6 {[%clk 0:02:41.6]} 8. Nb3 {[%clk
0:02:54.6]} 8... Nc6 {[%clk 0:02:40.9]} 9. Nbxd4 {[%clk 0:02:54.3]} 9... Nxd4
{[%clk 0:02:39.9]} 10. Qxd4 {[%clk 0:02:55.2]} 10... Bd7 {[%clk 0:02:36.5]} 11.
Bf4 {[%clk 0:02:38.1]} 11... Qxd4 {[%clk 0:02:35.9]} 12. Nxd4 {[%clk 0:02:39]}
12... a6 {[%clk 0:02:35.1]} 13. Be2 {[%clk 0:02:30.1]} 13... Nd5 {[%clk
0:02:25.6]} 14. Bg3 {[%clk 0:02:25]} 14... O-O-O {[%clk 0:02:12.7]} 15. c3
{[%clk 0:01:55]} 15... f6 {[%clk 0:02:08.5]} 16. Bf3 {[%clk 0:01:52.6]} 16...
Nb6 {[%clk 0:02:03]} 17. Rfe1 {[%clk 0:01:49.9]} 17... e5 {[%clk 0:02:03.1]} 18.
Nb3 {[%clk 0:01:49.5]} 18... Be6 {[%clk 0:01:55.3]} 19. Rad1 {[%clk 0:01:44.4]}
19... Be7 {[%clk 0:01:54.2]} 20. h3 {[%clk 0:01:33.8]} 20... Nc4 {[%clk
0:01:48.8]} 21. Rb1 {[%clk 0:01:31.6]} 21... Rd7 {[%clk 0:01:24.1]} 22. Be2
{[%clk 0:01:09.5]} 22... Nb6 {[%clk 0:01:21.7]} 23. f4 {[%clk 0:01:08.9]} 23...
e4 {[%clk 0:01:01.7]} 24. Bf2 {[%clk 0:01:04.8]} 24... Nd5 {[%clk 0:00:50]} 25.
Nd4 {[%clk 0:00:59.5]} 25... Nxf4 {[%clk 0:00:41.5]} 26. Nxe6 {[%clk 0:00:59.2]}
26... Nxe6 {[%clk 0:00:41.3]} 27. Bg4 {[%clk 0:00:59.3]} 27... Rd6 {[%clk
0:00:38]} 28. Rxe4 {[%clk 0:00:58.9]} 28... Kd7 {[%clk 0:00:35]} 29. Rxe6 {[%clk
0:00:58]} 29... Rxe6 {[%clk 0:00:34.9]} 30. Re1 {[%clk 0:00:58.7]} 30... Bd6
{[%clk 0:00:26.6]} 31. Bxe6+ {[%clk 0:00:56.9]} 31... Kc6 {[%clk 0:00:25.5]} 32.
Bg4 {[%clk 0:00:55.9]} 32... Be5 {[%clk 0:00:25.7]} 33. Bf3+ {[%clk 0:00:55.7]}
33... Kc7 {[%clk 0:00:25]} 34. Rd1 {[%clk 0:00:56.4]} 34... Re8 {[%clk
0:00:22.9]} 35. Kf1 {[%clk 0:00:53.1]} 35... g5 {[%clk 0:00:22.4]} 36. Bd4
{[%clk 0:00:51.2]} 36... Bxd4 {[%clk 0:00:21.8]} 37. Rxd4 {[%clk 0:00:52.1]}
37... Re7 {[%clk 0:00:22]} 38. Re4 {[%clk 0:00:52.3]} 38... Rd7 {[%clk
0:00:22.3]} 39. Rd4 {[%clk 0:00:53]} 39... Re7 {[%clk 0:00:22.8]} 40. Kf2 {[%clk
0:00:53.7]} 40... Kb6 {[%clk 0:00:22.1]} 41. Rb4+ {[%clk 0:00:52.9]} 41... Kc5
{[%clk 0:00:21.7]} 1-0